fUST/lending_fUST_20250724
["ID","MTS","AMOUNT","RATE_DAILY","PERIOD"]
[374575382,1753360278115,-461.86,0.00023013,2]
[374575383,1753360278125,-460.0,0.00023013,2]
[374575384,1753360278135,-460.0,0.00023013,2]
[374575385,1753360278146,-617.93,0.00023013,2]
[374575386,1753360278157,-497.53,0.00023013,2]
[374575387,1753360278167,-498.33,0.00023013,2]
[374575388,1753360278177,-1176.12,0.00023013,2]
[374575389,1753360278186,-468.66,0.00023013,2]
[374575390,1753360278196,-460.0,0.00023013,2]
[374575391,1753360278206,-460.0,0.00023013,2]
[374575392,1753360278216,-460.0,0.00023013,2]
[374575393,1753360278226,-370.171953,0.00023013,2]
[374575394,1753360278235,-485.69,0.00023013,2]
[374575395,1753360278245,-460.0,0.00023013,2]
[374575396,1753360278255,-214.44820513,0.00023013,2]
[374575397,1753360278264,-460.0,0.00023013,2]
[374575398,1753360278274,-460.0,0.00023013,2]
[374575399,1753360278284,-460.0,0.00023013,2]
[374575400,1753360278294,-460.0,0.00023013,2]
[374575401,1753360278303,-656.04,0.00023013,2]
[374575402,1753360278314,-460.0,0.00023013,2]
[374575403,1753360278323,-4145.47,0.00023013,2]
[374575404,1753360278333,-787.46,0.00023013,2]
[374575405,1753360278343,-460.0,0.00023013,2]
[374575406,1753360278353,-391.48640666,0.00023013,2]
[374575407,1753360278363,-3246.15,0.00023013,2]
[374575408,1753360278373,-460.0,0.00023013,2]
[374575409,1753360278383,-1199.81,0.00023013,2]
[374575410,1753360278393,-983.86,0.00023013,2]
[374575411,1753360278403,-460.0,0.00023013,2]
[374575412,1753360278412,-1418.88,0.00023013,2]
[374575413,1753360278424,-467.64022864,0.00023013,2]
[374575414,1753360278433,-460.0,0.00023013,2]
[374575415,1753360278443,-849.03,0.00023013,2]
[374575416,1753360278453,-569.28,0.00023013,2]
[374575417,1753360278463,-1824.94,0.00023013,2]
[374575418,1753360278472,-627.83,0.00023013,2]
[374575419,1753360278482,-613.55,0.00023013,2]
[374575420,1753360278491,-2461.45,0.00023013,2]
[374575421,1753360278501,-460.0,0.00023013,2]
[374575422,1753360278511,-460.0,0.00023013,2]
[374575423,1753360278520,-460.0,0.00023013,2]
[374575424,1753360278530,-477.9,0.00023013,2]
[374575425,1753360278540,-479.16,0.00023013,2]
[374575426,1753360278549,-460.0,0.00023013,2]
[374575427,1753360278558,-460.0,0.00023013,2]
[374575428,1753360278568,-597.66,0.00023013,2]
[374575429,1753360278578,-2629.06,0.00023013,2]
[374575430,1753360278588,-602.97,0.00023013,2]
[374575431,1753360278597,-604.51,0.00023013,2]
[374575432,1753360278607,-1353.06,0.00023013,2]
[374575433,1753360278618,-460.0,0.00023013,2]
[374575434,1753360278628,-555.83,0.00023013,2]
[374575435,1753360278638,-460.0,0.00023013,2]
[374575436,1753360278647,-323.21,0.00023013,2]
[374575437,1753360278656,-460.0,0.00023013,2]
[374575438,1753360278667,-2933.32,0.00023013,2]
[374575439,1753360278677,-616.01,0.00023013,2]
[374575440,1753360278687,-460.0,0.00023013,2]
[374575441,1753360278697,-609.01,0.00023013,2]
[374575442,1753360278706,-460.21,0.00023013,2]
[374575443,1753360278716,-1496.43,0.00023013,2]
[374575444,1753360278725,-1261.1,0.00023013,2]
[374575445,1753360278735,-151.0,0.00023013,7]
[374575446,1753360278745,-653.26,0.00023013,2]
[374575447,1753360278755,-670.55,0.00023013,2]
[374575448,1753360278764,-5786.17,0.00023013,2]
[374575449,1753360278774,-596.9,0.00023013,2]
[374575450,1753360278785,-604.88,0.00023013,2]
[374575451,1753360278795,-1911.8,0.00023013,2]
[374575452,1753360278806,-460.0,0.00023013,2]
[374575453,1753360278819,-460.0,0.00023013,2]
[374575454,1753360278828,-744.46,0.00023013,2]
[374575455,1753360278838,-460.0,0.00023013,2]
[374575456,1753360278848,-670.07,0.00023013,2]
[374575457,1753360278858,-531.78,0.00023013,2]
[374575458,1753360278868,-1002.82,0.00023013,2]
[374575459,1753360278877,-498.33,0.00023013,2]
[374575460,1753360278886,-1757.41,0.00023013,2]
[374575461,1753360278896,-754.62,0.00023013,2]
[374575462,1753360278905,-529.83,0.00023013,2]
[374575463,1753360278915,-3594.1,0.00023013,2]
[374575464,1753360278927,-537.6,0.00023082,5]
[374575465,1753360278936,-1033.81,0.00023082,6]
[374575466,1753360278945,-279.005131,0.000231,7]
[374575467,1753360278955,-2212.1093408,0.00023176,8]
[374575468,1753360278965,-1033.81,0.00023182,6]
[374575469,1753360278975,-150.14227199,0.0002319,2]
[374575470,1753360278984,-223.0315306,0.0002319,2]
[374575471,1753360278994,-1101.33,0.000232,7]
[374575472,1753360279003,-34169.55,0.000232,2]
[374575473,1753360279013,-151.0,0.000232,7]
[374575474,1753360279023,-395.835009,0.000232,7]
[374575475,1753360279033,-395.835009,0.000232,7]
[374575476,1753360279043,-151.0,0.000232,7]
[374575477,1753360279053,-793.122708,0.000232,7]
[374575478,1753360279062,-793.122708,0.000232,7]
[374575479,1753360279072,-272.6,0.00023215,6]
[374575480,1753360279082,-151.0,0.00023273,7]
[374575481,1753360279092,-1033.81,0.00023282,6]
[374575482,1753360279101,-151.0,0.00023287,7]
[374575483,1753360279111,-151.0,0.00023287,7]
[374575484,1753360279120,-509.69,0.00023287,2]
[374575485,1753360279131,-460.0,0.00023287,2]
[374575486,1753360279144,-271.76990548,0.00023287,2]
[374575487,1753360279154,-625.4,0.00023287,2]
[374575488,1753360279164,-454.31647254,0.00023287,2]
[374575489,1753360279175,-461.86,0.00023287,2]
[374575490,1753360279185,-460.0,0.00023287,2]
[374575491,1753360279195,-453.26988914,0.00023287,2]
[374575492,1753360279205,-617.93,0.00023287,2]
[374575493,1753360279215,-497.53,0.00023287,2]
[374575494,1753360279225,-498.33,0.00023287,2]
[374575495,1753360279235,-1176.12,0.00023287,2]
[374575496,1753360279245,-468.66,0.00023287,2]
[374575497,1753360279254,-460.0,0.00023287,2]
[374575498,1753360279263,-460.0,0.00023287,2]
[374575499,1753360279273,-460.0,0.00023287,2]
[374575500,1753360279282,-485.69,0.00023287,2]
[374575501,1753360279292,-460.0,0.00023287,2]
[374575502,1753360279301,-460.0,0.00023287,2]
[374575503,1753360279311,-460.0,0.00023287,2]
[374575504,1753360279320,-468.46542472,0.00023287,2]
[374575505,1753360279330,-656.04,0.00023287,2]
[374575506,1753360279341,-460.0,0.00023287,2]
[374575507,1753360279351,-4145.47,0.00023287,2]
[374575508,1753360279360,-787.46,0.00023287,2]
[374575509,1753360279370,-460.0,0.00023287,2]
[374575510,1753360279380,-460.0,0.00023287,2]
[374575511,1753360279390,-3246.15,0.00023287,2]
[374575512,1753360279399,-1199.81,0.00023287,2]
[374575513,1753360279409,-983.86,0.00023287,2]
[374575514,1753360279418,-460.0,0.00023287,2]
[374575515,1753360279432,-1418.88,0.00023287,2]
[374575516,1753360279441,-460.0,0.00023287,2]
[374575517,1753360279451,-849.03,0.00023287,2]
[374575518,1753360279463,-569.28,0.00023287,2]
[374575519,1753360279473,-1824.94,0.00023287,2]
[374575520,1753360279483,-627.83,0.00023287,2]
[374575521,1753360279492,-613.55,0.00023287,2]
[374575522,1753360279502,-2461.45,0.00023287,2]
[374575523,1753360279511,-460.0,0.00023287,2]
[374575524,1753360279521,-460.0,0.00023287,2]
[374575525,1753360279531,-247.48757887,0.00023287,2]
[374575526,1753360279541,-479.16,0.00023287,2]
[374575527,1753360279550,-460.0,0.00023287,2]
[374575528,1753360279560,-460.0,0.00023287,2]
[374575529,1753360279571,-597.66,0.00023287,2]
[374575530,1753360279580,-2629.06,0.00023287,2]
[374575531,1753360279590,-602.97,0.00023287,2]
[374575532,1753360279600,-604.51,0.00023287,2]
[374575533,1753360279610,-1353.06,0.00023287,2]
[374575534,1753360279620,-460.0,0.00023287,2]
[374575535,1753360279630,-555.83,0.00023287,2]
[374575536,1753360279639,-336.67,0.00023287,2]
[374575537,1753360279648,-460.0,0.00023287,2]
[374575538,1753360279657,-2933.32,0.00023287,2]
[374575539,1753360279668,-616.01,0.00023287,2]
[374575540,1753360279678,-460.0,0.00023287,2]
[374575541,1753360279687,-609.01,0.00023287,2]
[374575542,1753360279697,-460.21,0.00023287,2]
[374575543,1753360279706,-1496.43,0.00023287,2]
[374575544,1753360279715,-1261.1,0.00023287,2]
[374575545,1753360279724,-653.26,0.00023287,2]
[374575546,1753360279734,-670.55,0.00023287,2]
[374575547,1753360279744,-5786.17,0.00023287,2]
[374575548,1753360279753,-596.9,0.00023287,2]
[374575549,1753360279762,-604.88,0.00023287,2]
[374575550,1753360279771,-1911.8,0.00023287,2]
[374575551,1753360279781,-460.0,0.00023287,2]
[374575552,1753360279790,-460.0,0.00023287,2]
[374575553,1753360279800,-744.46,0.00023287,2]
[374575554,1753360279809,-460.0,0.00023287,2]
[374575555,1753360279819,-670.07,0.00023287,2]
[374575556,1753360279828,-531.78,0.00023287,2]
[374575557,1753360279837,-1002.82,0.00023287,2]
[374575558,1753360279847,-498.33,0.00023287,2]
[374575559,1753360279856,-1757.41,0.00023287,2]
[374575560,1753360279867,-754.62,0.00023287,2]
[374575561,1753360279876,-529.83,0.00023287,2]
[374575562,1753360279886,-3594.1,0.00023287,2]
[374575563,1753360279896,-500.0,0.00023288,2]
[374575564,1753360279905,-151.0,0.00023288,2]
[374575565,1753360279914,-151.0,0.00023288,2]
[374575566,1753360279929,-198.00000001,0.00023288,2]
[374575567,1753360279938,-201.04954806,0.00023288,2]
[374575568,1753360279947,-500.0,0.00023288,2]
[374575569,1753360279956,-151.0,0.00023288,2]
[374575570,1753360279965,-500.0,0.00023288,2]
[374575571,1753360279975,-151.0,0.00023288,2]
[374575572,1753360279985,-151.0,0.00023288,2]
[374575573,1753360279994,-151.0,0.00023288,2]
[374575574,1753360280004,-151.0,0.00023288,2]
[374575575,1753360280013,-200.27697752,0.00023288,2]
[374575576,1753360280023,-500.0,0.00023288,2]
[374575577,1753360280032,-151.0,0.00023288,2]
[374575578,1753360280042,-519.0,0.00023288,2]
[374575579,1753360280052,-151.0,0.00023288,2]
[374575580,1753360280062,-151.0,0.00023288,2]
[374575581,1753360280071,-151.23048046,0.00023288,2]
[374575582,1753360280081,-151.15357884,0.00023288,2]
[374575583,1753360280090,-151.0,0.00023288,2]
[374575584,1753360280100,-151.0,0.00023288,2]
[374575585,1753360280109,-249.59601864,0.00023288,2]
[374575586,1753360280119,-166.67,0.00023326,2]
[374575587,1753360280137,-2212.1093408,0.00023348,9]
[374575588,1753360280157,-1033.81,0.00023382,6]
[374575589,1753360280178,-961.06,0.000234,2]
[374575590,1753360280192,-155.497014,0.00023416,6]
[374575591,1753360280201,-206.0,0.0002342,2]
[374575592,1753360280211,-155.497014,0.00023422,6]
[374575593,1753360280221,-809.0,0.00023453,2]
[374575594,1753360280230,-151.0,0.00023482,7]
[374575595,1753360280240,-1033.81,0.00023482,7]
[374575596,1753360280250,-848.0,0.00023492,2]
[374575597,1753360280259,-1022.31,0.000235,7]
[374575598,1753360280268,-7555.78,0.000235,7]
[374575599,1753360280278,-2212.1093408,0.00023521,9]
[374575600,1753360280288,-429.7456075,0.00023534,2]
[374575601,1753360280298,-429.7456075,0.00023534,2]
[374575602,1753360280308,-429.7456075,0.00023534,2]
[374575603,1753360280318,-429.7456075,0.00023534,2]
[374575604,1753360280328,-429.7456075,0.00023534,2]
[374575605,1753360280337,-429.7456075,0.00023534,2]
[374575606,1753360280347,-272.6,0.00023552,6]
[374575607,1753360280356,-151.342857,0.00023561,7]
[374575608,1753360280366,-151.342857,0.00023561,7]
[374575609,1753360280375,-509.69,0.00023561,2]
[374575610,1753360280385,-460.0,0.00023561,2]
[374575611,1753360280395,-625.4,0.00023561,2]
[374575612,1753360280404,-151.0,0.00023561,7]
[374575613,1753360280414,-461.86,0.00023561,2]
[374575614,1753360280425,-151.242856,0.00023561,7]
[374575615,1753360280435,-460.0,0.00023561,2]
[374575616,1753360280446,-617.93,0.00023561,2]
[374575617,1753360280456,-497.53,0.00023561,2]
[374575618,1753360280466,-498.33,0.00023561,2]
[374575619,1753360280476,-1176.12,0.00023561,2]
[374575620,1753360280487,-468.66,0.00023561,2]
[374575621,1753360280497,-269.56,0.00023561,2]
[374575622,1753360280508,-460.0,0.00023561,2]
[374575623,1753360280519,-460.0,0.00023561,2]
[374575624,1753360280528,-485.69,0.00023561,2]
[374575625,1753360280539,-460.0,0.00023561,2]
[374575626,1753360280549,-151.0,0.00023561,7]
[374575627,1753360280560,-151.0,0.00023561,7]
[374575628,1753360280570,-460.0,0.00023561,2]
[374575629,1753360280581,-460.0,0.00023561,2]
[374575630,1753360280592,-656.04,0.00023561,2]
[374575631,1753360280603,-460.0,0.00023561,2]
[374575632,1753360280613,-4145.47,0.00023561,2]
[374575633,1753360280623,-787.46,0.00023561,2]
[374575634,1753360280632,-470.8700511,0.00023561,2]
[374575635,1753360280642,-460.0,0.00023561,2]
[374575636,1753360280652,-3246.15,0.00023561,2]
[374575637,1753360280661,-1199.81,0.00023561,2]
[374575638,1753360280673,-983.86,0.00023561,2]
[374575639,1753360280682,-460.0,0.00023561,2]
[374575640,1753360280691,-1418.88,0.00023561,2]
[374575641,1753360280701,-849.03,0.00023561,2]
[374575642,1753360280711,-460.0,0.00023561,2]
[374575643,1753360280721,-569.28,0.00023561,2]
[374575644,1753360280731,-1824.94,0.00023561,2]
[374575645,1753360280740,-627.83,0.00023561,2]
[374575646,1753360280750,-613.55,0.00023561,2]
[374575647,1753360280759,-2461.45,0.00023561,2]
[374575648,1753360280769,-460.0,0.00023561,2]
[374575649,1753360280778,-479.16,0.00023561,2]
[374575650,1753360280788,-460.0,0.00023561,2]
[374575651,1753360280798,-597.66,0.00023561,2]
[374575652,1753360280808,-2629.06,0.00023561,2]
[374575653,1753360280817,-602.97,0.00023561,2]
[374575654,1753360280826,-604.51,0.00023561,2]
[374575655,1753360280836,-1353.06,0.00023561,2]
[374575656,1753360280846,-460.0,0.00023561,2]
[374575657,1753360280855,-555.83,0.00023561,2]
[374575658,1753360280864,-460.0,0.00023561,2]
[374575659,1753360280873,-2933.32,0.00023561,2]
[374575660,1753360280883,-616.01,0.00023561,2]
[374575661,1753360280893,-460.0,0.00023561,2]
[374575662,1753360280902,-609.01,0.00023561,2]
[374575663,1753360280912,-460.21,0.00023561,2]
[374575664,1753360280924,-1496.43,0.00023561,2]
[374575665,1753360280933,-1261.1,0.00023561,2]
[374575666,1753360280942,-653.26,0.00023561,2]
[374575667,1753360280952,-670.55,0.00023561,2]
[374575668,1753360280961,-5786.17,0.00023561,2]
[374575669,1753360280971,-596.9,0.00023561,2]
[374575670,1753360280981,-604.88,0.00023561,2]
[374575671,1753360280990,-1911.8,0.00023561,2]
[374575672,1753360281000,-460.0,0.00023561,2]
[374575673,1753360281010,-460.0,0.00023561,2]
[374575674,1753360281020,-744.46,0.00023561,2]
[374575675,1753360281029,-460.0,0.00023561,2]
[374575676,1753360281039,-670.07,0.00023561,2]
[374575677,1753360281049,-531.78,0.00023561,2]
[374575678,1753360281058,-1002.82,0.00023561,2]
[374575679,1753360281068,-498.33,0.00023561,2]
[374575680,1753360281079,-1757.41,0.00023561,2]
[374575681,1753360281090,-754.62,0.00023561,2]
[374575682,1753360281100,-529.83,0.00023561,2]
[374575683,1753360281110,-3594.1,0.00023561,2]
[374575684,1753360281119,-500.0,0.00023562,2]
[374575685,1753360281128,-151.0,0.00023562,2]
[374575686,1753360281141,-500.0,0.00023562,2]
[374575687,1753360281151,-151.0,0.00023562,2]
[374575688,1753360281160,-500.0,0.00023562,2]
[374575689,1753360281170,-151.0,0.00023562,2]
[374575690,1753360281181,-151.0,0.00023562,2]
[374575691,1753360281191,-151.0,0.00023562,2]
[374575692,1753360281201,-151.0,0.00023562,2]
[374575693,1753360281212,-633.69002538,0.00023562,2]
[374575694,1753360281348,-210.42481086,0.00023562,2]
[374575695,1753360281358,-519.0,0.00023562,2]
[374575696,1753360281369,-151.0,0.00023562,2]
[374575697,1753360281379,-151.0,0.00023562,2]
[374575698,1753360281389,-151.0,0.00023562,2]
[374575699,1753360281399,-289.549182,0.00023562,7]
[374575700,1753360281409,-289.549182,0.00023562,7]
[374575701,1753360281420,-1033.81,0.00023582,3]
[374575702,1753360281429,-809.0,0.00023583,2]
[374575703,1753360281439,-1033.81,0.00023682,4]
[374575704,1753360281449,-809.0,0.00023688,2]
[374575705,1753360281459,-2212.1093408,0.00023693,9]
[374575706,1753360281469,-206.0,0.0002371,2]
[374575707,1753360281479,-166.67,0.00023768,2]
[374575708,1753360281489,-151.0,0.00023782,7]
[374575709,1753360281499,-1033.81,0.00023782,3]
[374575710,1753360281510,-1000.0,0.000238,2]
[374575711,1753360281520,-151.0,0.00023835,7]
[374575712,1753360281530,-151.0,0.00023835,7]
[374575713,1753360281540,-151.0,0.00023835,7]
[374575714,1753360281551,-509.69,0.00023835,2]
[374575715,1753360281560,-460.0,0.00023835,2]
[374575716,1753360281570,-625.4,0.00023835,2]
[374575717,1753360281579,-461.86,0.00023835,2]
[374575718,1753360281589,-460.0,0.00023835,2]
[374575719,1753360281599,-617.93,0.00023835,2]
[374575720,1753360281609,-497.53,0.00023835,2]
[374575721,1753360281618,-498.33,0.00023835,2]
[374575722,1753360281629,-1176.12,0.00023835,2]
[374575723,1753360281639,-468.66,0.00023835,2]
[374575724,1753360281648,-460.0,0.00023835,2]
[374575725,1753360281658,-460.0,0.00023835,2]
[374575726,1753360281668,-485.69,0.00023835,2]
[374575727,1753360281679,-460.0,0.00023835,2]
[374575728,1753360281688,-460.0,0.00023835,2]
[374575729,1753360281698,-555.19072505,0.00023835,2]
[374575730,1753360281708,-656.04,0.00023835,2]
[374575731,1753360281718,-460.0,0.00023835,2]
[374575732,1753360281728,-787.46,0.00023835,2]
[374575733,1753360281738,-4145.47,0.00023835,2]
[374575734,1753360281748,-460.0,0.00023835,2]
[374575735,1753360281758,-3246.15,0.00023835,2]
[374575736,1753360281768,-1199.81,0.00023835,2]
[374575737,1753360281777,-983.86,0.00023835,2]
[374575738,1753360281787,-460.0,0.00023835,2]
[374575739,1753360281797,-1418.88,0.00023835,2]
[374575740,1753360281807,-849.03,0.00023835,2]
[374575741,1753360281816,-460.0,0.00023835,2]
[374575742,1753360281826,-569.28,0.00023835,2]
[374575743,1753360281836,-1824.94,0.00023835,2]
[374575744,1753360281845,-627.83,0.00023835,2]
[374575745,1753360281855,-613.55,0.00023835,2]
[374575746,1753360281865,-2461.45,0.00023835,2]
[374575747,1753360281875,-460.0,0.00023835,2]
[374575748,1753360281886,-479.16,0.00023835,2]
[374575749,1753360281897,-381.13,0.00023835,2]
[374575750,1753360281907,-597.66,0.00023835,2]
[374575751,1753360281917,-2629.06,0.00023835,2]
[374575752,1753360281929,-602.97,0.00023835,2]
[374575753,1753360281939,-604.51,0.00023835,2]
[374575754,1753360281949,-1353.06,0.00023835,2]
[374575755,1753360281959,-460.0,0.00023835,2]
[374575756,1753360281970,-555.83,0.00023835,2]
[374575757,1753360281988,-460.0,0.00023835,2]
[374575758,1753360281998,-2933.32,0.00023835,2]
[374575759,1753360282008,-616.01,0.00023835,2]
[374575760,1753360282018,-460.0,0.00023835,2]
[374575761,1753360282027,-609.01,0.00023835,2]
[374575762,1753360282037,-460.21,0.00023835,2]
[374575763,1753360282046,-1496.43,0.00023835,2]
[374575764,1753360282056,-1261.1,0.00023835,2]
[374575765,1753360282065,-653.26,0.00023835,2]
[374575766,1753360282075,-670.55,0.00023835,2]
[374575767,1753360282084,-5786.17,0.00023835,2]
[374575768,1753360282094,-596.9,0.00023835,2]
[374575769,1753360282103,-604.88,0.00023835,2]
[374575770,1753360282114,-1911.8,0.00023835,2]
[374575771,1753360282123,-460.0,0.00023835,2]
[374575772,1753360282133,-460.0,0.00023835,2]
[374575773,1753360282147,-744.46,0.00023835,2]
[374575774,1753360282156,-460.0,0.00023835,2]
[374575775,1753360282166,-670.07,0.00023835,2]
[374575776,1753360282176,-531.78,0.00023835,2]
[374575777,1753360282186,-1002.82,0.00023835,2]
[374575778,1753360282196,-498.33,0.00023835,2]
[374575779,1753360282206,-1757.41,0.00023835,2]
[374575780,1753360282217,-754.62,0.00023835,2]
[374575781,1753360282227,-529.83,0.00023835,2]
[374575782,1753360282236,-3594.1,0.00023835,2]
[374575783,1753360282246,-497.23984541,0.00023836,2]
[374575784,1753360282255,-151.0,0.00023836,2]
[374575785,1753360282265,-500.0,0.00023836,2]
[374575786,1753360282274,-151.0,0.00023836,2]
[374575787,1753360282284,-500.0,0.00023836,2]
[374575788,1753360282293,-151.0,0.00023836,2]
[374575789,1753360282303,-173.7533436,0.00023836,2]
[374575790,1753360282313,-151.0,0.00023836,2]
[374575791,1753360282322,-519.0,0.00023836,2]
[374575792,1753360282332,-151.0,0.00023836,2]
[374575793,1753360282342,-151.0,0.00023836,2]
[374575794,1753360282352,-2212.1093408,0.00023866,10]
[374575795,1753360282362,-1033.81,0.00023882,4]
[374575796,1753360282371,-272.6,0.00023889,6]
[374575797,1753360282382,-500.0,0.0002389,2]
[374575798,1753360282394,-150.0,0.000239,2]
[374575799,1753360282404,-848.0,0.00023965,2]
[374575800,1753360282413,-1033.81,0.00023982,4]
[374575801,1753360282424,-495.388467,0.00023999,2]
[374575802,1753360282433,-7000.0,0.00024,7]
[374575803,1753360282443,-526.24749348,0.00024,7]
[374575804,1753360282453,-526.24749348,0.00024,7]
[374575805,1753360282462,-160.0,0.00024,3]
[374575806,1753360282471,-160.0,0.00024,7]
[374575807,1753360282482,-178.2667198,0.00024006,2]
[374575808,1753360282491,-159.9507963,0.00024006,2]
[374575809,1753360282501,-153.0,0.00024006,2]
[374575810,1753360282510,-206.0,0.0002401,2]
[374575811,1753360282520,-500.0,0.00024025,2]
[374575812,1753360282529,-168.0,0.00024032,2]
[374575813,1753360282538,-500.0,0.00024032,2]
[374575814,1753360282548,-2212.1093408,0.00024038,10]
[374575815,1753360282558,-848.0,0.00024051,2]
[374575816,1753360282567,-1033.81,0.00024082,7]
[374575817,1753360282577,-966.45,0.00024083,2]
[374575818,1753360282586,-155.497014,0.00024086,2]
[374575819,1753360282596,-500.0,0.00024088,2]
[374575820,1753360282605,-500.0,0.00024089,2]
[374575821,1753360282615,-509.69,0.00024109,2]
[374575822,1753360282624,-460.0,0.00024109,2]
[374575823,1753360282634,-625.4,0.00024109,2]
[374575824,1753360282643,-461.86,0.00024109,2]
[374575825,1753360282653,-460.0,0.00024109,2]
[374575826,1753360282662,-617.93,0.00024109,2]
[374575827,1753360282674,-497.53,0.00024109,2]
[374575828,1753360282683,-498.33,0.00024109,2]
[374575829,1753360282692,-1176.12,0.00024109,2]
[374575830,1753360282703,-468.66,0.00024109,2]
[374575831,1753360282713,-397.99319594,0.00024109,2]
[374575832,1753360282723,-460.0,0.00024109,2]
[374575833,1753360282732,-485.69,0.00024109,2]
[374575834,1753360282742,-460.0,0.00024109,2]
[374575835,1753360282752,-460.0,0.00024109,2]
[374575836,1753360282762,-656.04,0.00024109,2]
[374575837,1753360282771,-460.0,0.00024109,2]
[374575838,1753360282781,-787.46,0.00024109,2]
[374575839,1753360282792,-4145.47,0.00024109,2]
[374575840,1753360282802,-460.0,0.00024109,2]
[374575841,1753360282812,-3246.15,0.00024109,2]
[374575842,1753360282822,-1199.81,0.00024109,2]
[374575843,1753360282831,-983.86,0.00024109,2]
[374575844,1753360282842,-460.0,0.00024109,2]
[374575845,1753360282852,-1418.88,0.00024109,2]
[374575846,1753360282861,-849.03,0.00024109,2]
[374575847,1753360282871,-460.0,0.00024109,2]
[374575848,1753360282882,-569.28,0.00024109,2]
[374575849,1753360282892,-1824.94,0.00024109,2]
[374575850,1753360282902,-500.0,0.00024109,2]
[374575851,1753360282911,-627.83,0.00024109,2]
[374575852,1753360282921,-613.55,0.00024109,2]
[374575853,1753360282931,-2461.45,0.00024109,2]
[374575854,1753360282940,-479.16,0.00024109,2]
[374575855,1753360282950,-597.66,0.00024109,2]
[374575856,1753360282960,-2629.06,0.00024109,2]
[374575857,1753360282970,-602.97,0.00024109,2]
[374575858,1753360282980,-604.51,0.00024109,2]
[374575859,1753360282990,-1353.06,0.00024109,2]
[374575860,1753360282999,-460.0,0.00024109,2]
[374575861,1753360283008,-460.0,0.00024109,2]
[374575862,1753360283017,-2933.32,0.00024109,2]
[374575863,1753360283027,-616.01,0.00024109,2]
[374575864,1753360283036,-460.0,0.00024109,2]
[374575865,1753360283046,-609.01,0.00024109,2]
[374575866,1753360283056,-460.21,0.00024109,2]
[374575867,1753360283065,-1496.43,0.00024109,2]
[374575868,1753360283075,-1261.1,0.00024109,2]
[374575869,1753360283084,-151.0,0.00024109,7]
[374575870,1753360283094,-653.26,0.00024109,2]
[374575871,1753360283103,-670.55,0.00024109,2]
[374575872,1753360283113,-5786.17,0.00024109,2]
[374575873,1753360283122,-596.9,0.00024109,2]
[374575874,1753360283132,-604.88,0.00024109,2]
[374575875,1753360283145,-1911.8,0.00024109,2]
[374575876,1753360283154,-460.0,0.00024109,2]
[374575877,1753360283164,-744.46,0.00024109,2]
[374575878,1753360283177,-460.0,0.00024109,2]
[374575879,1753360283186,-670.07,0.00024109,2]
[374575880,1753360283196,-531.78,0.00024109,2]
[374575881,1753360283205,-1002.82,0.00024109,2]